bitfinex/quotes_SOLUSD_20251106
["timestamp","ask_amount","ask_price","bid_price","bid_amount"]
[1762398280250,3.28350457,162.32,162.3,7.16]
[1762398280444,114.80342628,162.34,162.3,7.16]
[1762398280968,0.66,162.33,162.3,7.16]
[1762398282869,105.36,162.34,162.3,13.32129201]
[1762398283070,104.7,162.34,162.3,13.99129201]
[1762398283369,105.36,162.34,162.3,13.99129201]
[1762398283556,114.14342383,162.34,162.3,7.16]
[1762398283762,0.66,162.33,162.3,7.16]
[1762398284277,3.94350457,162.33,162.3,7.16]
[1762398284656,0.66,162.32,162.28,6.83206173]
[1762398284968,10.10443539,162.32,162.28,6.16206173]
[1762398285169,10.10443539,162.32,162.28,6.83206173]
[1762398285387,104.7,162.34,162.31,3.28350457]
[1762398285564,104.7,162.34,162.33,3.28350457]
[1762398285874,104.7,162.34,162.33,7.83]
[1762398286071,104.7,162.34,162.31,0.67]
[1762398286256,104.7,162.34,162.29,0.67]
[1762398286467,105.36,162.34,162.3,7.16]
[1762398286766,0.66,162.33,162.28,9.4455663]
[1762398286962,114.80346539,162.34,162.3,6.16142945]
[1762398287172,114.80346539,162.34,162.3,13.32142945]
[1762398287173,114.80345496,162.34,162.3,13.32142945]
[1762398287471,114.80345496,162.34,162.3,6.16142945]
[1762398288064,111.51995039,162.34,162.3,10.11493402]
[1762398288576,111.51995039,162.34,162.3,17.27493402]
[1762398288951,105.36,162.34,162.3,6.83142945]
[1762398289178,105.36,162.34,162.3,17.27493402]
[1762398290062,105.36,162.34,162.3,10.11493402]
[1762398291188,105.36,162.34,162.3,17.27493402]
[1762398291564,105.36,162.34,162.3,10.11493402]
[1762398291953,105.36,162.34,162.3,17.27493402]
[1762398292445,114.81352261,162.34,162.29,6.16143415]
[1762398292664,114.81352261,162.34,162.3,7.16]
[1762398292866,114.81352261,162.34,162.3,7.87]
[1762398293176,105.37,162.34,162.3,11.15350457]
[1762398293382,108.65350457,162.34,162.3,7.87]
[1762398293565,114.81345574,162.34,162.3,7.87]
[1762398293882,108.65350457,162.34,162.3,14.03127505]
[1762398294771,114.81341721,162.34,162.3,14.03127505]
[1762398294968,114.81341721,162.34,162.3,6.87127505]
[1762398295177,114.81341721,162.34,162.3,14.03127505]
[1762398295771,104.7,162.34,162.33,3.28350457]
[1762398296071,0.67,162.38,162.33,17.31351425]
[1762398296279,20.592,162.37,162.33,17.31351425]
[1762398296466,20.592,162.37,162.34,0.71]
[1762398296880,21.262,162.37,162.33,16.60351425]
[1762398297090,10.11152699,162.39,162.34,0.71]
[1762398297259,10.11152699,162.39,162.34,3.99350457]
[1762398297260,3.95350457,162.39,162.34,3.99350457]
[1762398297461,0.67,162.38,162.33,14.03000968]
[1762398297663,0.67,162.38,162.33,17.31351425]
[1762398297870,3.28350457,162.39,162.35,6.15953187]
[1762398298068,3.95350457,162.39,162.35,6.15953187]
[1762398298364,3.95350457,162.39,162.35,6.86953187]
[1762398299378,0.67,162.39,162.35,6.86953187]
[1762398300089,104.7,162.4,162.36,7.87]
[1762398300301,0.06920139,162.43,162.39,3.28350457]
[1762398300463,0.06920139,162.43,162.42,3.28350457]
[1762398300664,0.06920139,162.43,162.4,10.44350457]
[1762398300665,0.06920139,162.43,162.4,7.16]
[1762398300859,0.06920139,162.43,162.42,3.28350457]
[1762398301291,0.06920139,162.43,162.42,11.15350457]
[1762398301578,0.06920139,162.43,162.42,17.3103818]
[1762398301788,0.06920139,162.43,162.42,7.87]
[1762398301980,0.73920139,162.43,162.41,7.16]
[1762398302183,0.06920139,162.43,162.41,7.16]
[1762398302600,0.06920139,162.43,162.41,7.87]
[1762398303094,0.06920139,162.43,162.41,7.16]
[1762398303264,0.06920139,162.43,162.41,16.12643702]
[1762398303466,0.06920139,162.43,162.41,9.96920001]
[1762398303891,0.06920139,162.43,162.41,7.16]
[1762398304092,0.73920139,162.43,162.41,7.16]
[1762398304581,0.73920139,162.43,162.39,9.25920001]
[1762398304967,2.09920001,162.42,162.39,7.16]
[1762398305363,2.09920001,162.42,162.34,9.78882769]
[1762398305364,2.09920001,162.4,162.32,0.71]
[1762398305588,20.592,162.39,162.33,7.16]
[1762398305770,2.09920001,162.37,162.33,7.16]
[1762398306163,2.76920001,162.36,162.33,7.16]
[1762398306561,0.67,162.35,162.33,7.16]
[1762398306774,20.592,162.39,162.34,2.80920001]
[1762398306970,19.872,162.39,162.38,2.09920001]
[1762398307189,0.06920139,162.43,162.39,9.78882769]
[1762398307381,0.06920139,162.43,162.39,6.8678644]
[1762398307688,0.73920139,162.43,162.39,2.09920001]
[1762398307884,2.8384014,162.43,162.38,6.1583464]
[1762398308086,2.8384014,162.43,162.39,7.16]
[1762398308273,0.67,162.42,162.39,7.16]
[1762398308863,0.06920139,162.43,162.4,6.17831635]
[1762398309067,0.06920139,162.43,162.42,5.46831635]
[1762398309382,0.06920139,162.43,162.42,11.62519358]
[1762398310082,0.06920139,162.43,162.42,18.78519358]
[1762398310491,0.06920139,162.43,162.42,19.49519358]
[1762398311374,0.06920139,162.43,162.42,18.78519358]
[1762398312506,0.06920139,162.43,162.42,13.31687723]
[1762398312709,0.73920139,162.43,162.36,15.39703608]
[1762398313002,5.46831635,162.42,162.37,18.78708952]
[1762398313412,0.73920139,162.43,162.37,7.16]
[1762398313413,6.13831635,162.41,162.37,7.16]
[1762398313587,0.67,162.41,162.37,7.16]
[1762398313900,0.67,162.4,162.37,7.16]
[1762398314086,0.67,162.4,162.37,7.18]
[1762398314608,5.46831635,162.41,162.37,7.18]
[1762398314609,11.62561638,162.41,162.37,7.18]
[1762398314902,12.29561638,162.41,162.37,7.18]
[1762398315105,6.13831635,162.41,162.37,7.18]
[1762398315306,0.67,162.41,162.37,7.18]
[1762398315972,5.46831635,162.4,162.37,7.18]
[1762398316397,0.67,162.39,162.37,7.18]
[1762398317595,5.46831635,162.38,162.34,7.16]
[1762398317985,0.67,162.37,162.34,7.16]
[1762398318587,0.67,162.37,162.34,13.31973562]
[1762398319083,104.7,162.39,162.36,5.46831635]
[1762398319285,104.7,162.39,162.38,5.46831635]
[1762398320489,104.7,162.39,162.37,12.62831635]
[1762398320811,104.7,162.39,162.38,6.17831635]
[1762398321299,104.7,162.39,162.38,5.46831635]
[1762398321495,6.20751774,162.43,162.38,5.46831635]
[1762398321689,0.73920139,162.43,162.38,6.17831635]
[1762398321886,6.20751774,162.43,162.38,6.17831635]
[1762398322097,0.66,162.42,162.37,34.1837074]
[1762398322489,0.66,162.42,162.37,18.78677447]
[1762398322690,0.66,162.42,162.37,7.16]
[1762398322691,6.15725632,162.41,162.37,7.16]
[1762398322895,5.46831635,162.39,162.33,5.46831635]
[1762398323101,5.46831635,162.39,162.34,7.18]
[1762398323310,6.12831635,162.39,162.34,7.18]
[1762398323611,6.12831635,162.38,162.34,7.18]
[1762398324007,6.12831635,162.38,162.34,13.33968259]
[1762398324203,11.62675314,162.38,162.34,13.33968259]
[1762398324410,12.28675314,162.38,162.34,7.18]
[1762398324609,11.62675314,162.38,162.34,7.18]
[1762398324808,0.66,162.37,162.34,7.18]
[1762398325911,5.46831635,162.35,162.28,11.63039057]
[1762398326090,5.46831635,162.34,162.28,11.63039057]
[1762398326297,5.46831635,162.35,162.29,12.64831635]
[1762398326495,6.12831635,162.35,162.29,12.64831635]
[1762398326809,5.46831635,162.34,162.29,12.64831635]
[1762398327006,6.12831635,162.34,162.29,6.14831635]
[1762398327210,0.66,162.34,162.3,7.18]
[1762398327416,6.12831635,162.34,162.3,7.18]
[1762398327915,5.46831635,162.33,162.3,7.18]
[1762398328116,11.62875634,162.33,162.3,7.18]
[1762398328515,12.28875634,162.33,162.3,7.18]
[1762398328814,5.46831635,162.31,162.24,7.16]
[1762398328994,20.592,162.31,162.24,7.84]
[1762398329312,26.06031635,162.31,162.25,0.68]
[1762398329520,26.06031635,162.31,162.26,5.46831635]
[1762398329905,0.66,162.31,162.26,6.14831635]
[1762398330106,0.66,162.31,162.27,5.46831635]
[1762398330300,0.66,162.31,162.27,6.16223903]
[1762398330507,0.66,162.31,162.27,18.81055538]
[1762398331792,12.28945019,162.31,162.27,7.18]
[1762398332003,32.88145019,162.31,162.27,7.18]
[1762398332204,12.2899787,162.3,162.25,11.63158639]
[1762398332495,5.46831635,162.29,162.26,7.18]
[1762398332699,5.46831635,162.27,162.19,5.46831635]
[1762398332898,5.46831635,162.24,162.17,0.68]
[1762398333127,5.46831635,162.21,162.15,0.68]
[1762398333426,5.46831635,162.21,162.16,12.64831635]
[1762398333608,0.66,162.21,162.16,12.64831635]
[1762398333814,6.12831635,162.21,162.16,13.32831635]
[1762398334033,6.12831635,162.21,162.16,7.86]
[1762398334246,5.46831635,162.19,162.13,0.68]
[1762398334534,6.12831635,162.2,162.15,5.46831635]
[1762398334903,0.66,162.19,162.15,5.46831635]
[1762398335323,0.66,162.19,162.14,7.18]
[1762398335500,0.66,162.19,162.15,5.46831635]
[1762398335697,20.592,162.2,162.17,5.46831635]
[1762398335923,21.252,162.2,162.16,5.46831635]
[1762398336311,21.252,162.2,162.16,11.63497048]
[1762398336505,20.592,162.2,162.16,11.63497048]
[1762398336814,20.592,162.2,162.16,6.16665413]
[1762398336815,0.66,162.19,162.16,6.16665413]
[1762398336996,0.66,162.19,162.15,11.63538908]
[1762398337811,20.592,162.2,162.17,5.46831635]
[1762398338132,0.66,162.22,162.17,5.46831635]
[1762398338315,0.66,162.21,162.18,6.1659884]
[1762398338727,0.66,162.26,162.19,7.83]
[1762398338901,26.72031635,162.26,162.21,5.46831635]
[1762398339104,0.66,162.25,162.21,5.46831635]
[1762398340205,0.66,162.25,162.22,11.63249771]
[1762398340407,0.66,162.25,162.22,5.46831635]
[1762398340622,0.66,162.25,162.22,11.63273502]
[1762398341517,21.252,162.28,162.22,22.22558868]
[1762398341835,21.252,162.28,162.24,5.46831635]
[1762398342336,21.252,162.28,162.25,11.63154051]
[1762398343028,20.592,162.28,162.25,5.46831635]
[1762398343231,0.66,162.27,162.24,11.63199228]
[1762398344819,0.66,162.27,162.23,7.18]
[1762398345023,12.29088533,162.27,162.22,7.18]
[1762398345227,5.46831635,162.26,162.21,5.46831635]
[1762398345440,6.12831635,162.26,162.21,5.46831635]
[1762398345732,6.12831635,162.25,162.2,18.81326877]
[1762398346031,0.66,162.25,162.2,18.81326877]
[1762398346234,0.66,162.24,162.2,18.81326877]
[1762398346737,5.46831635,162.26,162.21,5.46831635]
[1762398347027,12.29135976,162.26,162.21,5.46831635]
[1762398347227,105.36,162.25,162.21,5.46831635]
[1762398348133,104.7,162.25,162.22,6.11831635]
[1762398348328,104.7,162.25,162.23,5.46831635]
[1762398348720,104.7,162.25,162.23,11.63210007]
[1762398348915,105.36,162.25,162.22,18.81269563]
[1762398349114,104.7,162.25,162.22,18.81269563]
[1762398349418,105.36,162.25,162.22,18.81269563]
[1762398349625,105.36,162.25,162.22,13.34437928]
[1762398349932,104.7,162.25,162.22,11.63269563]
[1762398350246,0.66,162.24,162.22,7.18]
[1762398351547,104.7,162.25,162.23,6.11831635]
[1762398351732,104.7,162.3,162.24,5.46831635]
[1762398351912,104.7,162.3,162.26,5.46831635]
[1762398352112,6.82999223,162.34,162.29,5.46831635]
[1762398352447,27.42199223,162.34,162.3,5.46831635]
[1762398352825,0.67,162.33,162.3,11.62951667]
[1762398353010,110.85963195,162.35,162.3,11.62951667]
[1762398353210,105.37,162.35,162.31,5.46831635]
[1762398353433,0.67,162.34,162.31,5.46831635]
[1762398354444,104.7,162.35,162.32,5.46831635]
[1762398354611,104.7,162.35,162.31,0.72]
[1762398354808,104.7,162.35,162.28,6.1618268]
[1762398354809,5.46831635,162.32,162.2,5.46831635]
[1762398355012,7.60002536,162.34,162.23,5.46831635]
[1762398355013,5.46831635,162.29,162.23,5.46831635]
[1762398355527,0.67,162.29,162.24,5.46831635]
[1762398356152,12.30028095,162.29,162.23,5.46831635]
[1762398356308,12.30028095,162.29,162.21,0.72]
[1762398356309,5.46831635,162.26,162.21,7.2]
[1762398356710,0.67,162.25,162.21,7.2]
[1762398357127,6.13831635,162.25,162.19,11.63392458]
[1762398357410,6.13831635,162.25,162.19,18.83392458]
[1762398357411,5.46831635,162.24,162.19,18.83392458]
[1762398357612,6.13831635,162.24,162.19,7.2]
[1762398357830,0.67,162.23,162.19,12.66831635]
[1762398358238,0.67,162.23,162.19,18.8335692]
[1762398359438,6.83410651,162.23,162.19,12.66831635]
[1762398359633,12.30242286,162.23,162.19,7.2]
[1762398359842,0.67,162.23,162.19,7.2]
[1762398360231,0.67,162.23,162.19,13.36557793]
[1762398360428,0.67,162.23,162.19,18.83389428]
[1762398360620,6.83413684,162.23,162.19,12.66831635]
[1762398361336,0.67,162.22,162.18,18.83420486]
[1762398361641,0.67,162.22,162.18,13.36596368]
[1762398361813,0.67,162.22,162.18,7.2]
[1762398362314,6.16560823,162.19,162.14,11.6357237]
[1762398362514,11.63392458,162.19,162.15,7.2]
[1762398362743,0.67,162.18,162.15,7.2]
[1762398364519,0.67,162.18,162.15,13.3670633]
[1762398364847,6.83607528,162.18,162.15,7.2]
[1762398365430,0.67,162.18,162.15,7.2]
[1762398366931,20.592,162.2,162.16,7.70251598]
[1762398367128,20.592,162.2,162.16,8.42251598]
[1762398367345,110.8649236,162.21,162.16,8.42251598]
[1762398367642,111.5349236,162.21,162.16,0.72]
[1762398367821,104.7,162.21,162.15,28.78476545]
[1762398368020,0.67,162.26,162.2,7.70251598]
[1762398368349,0.67,162.26,162.22,7.70251598]
[1762398368523,0.67,162.26,162.22,21.06693871]
[1762398369128,104.7,162.27,162.24,7.70251598]
[1762398369815,104.7,162.27,162.23,0.72]
[1762398369816,0.67,162.26,162.22,7.2]
[1762398370220,0.67,162.26,162.23,7.70251598]
[1762398370651,6.83303845,162.26,162.22,14.90251598]
[1762398371234,6.83303845,162.26,162.23,7.70251598]
[1762398371841,6.83303845,162.26,162.22,14.90251598]
[1762398372146,0.67,162.25,162.22,14.90251598]
[1762398372852,6.16303845,162.26,162.22,21.06693899]
[1762398373037,6.83303845,162.26,162.23,7.70251598]
[1762398373437,6.83303845,162.26,162.22,14.90251598]
[1762398373649,0.67,162.25,162.22,14.90251598]
[1762398373830,0.67,162.25,162.22,7.2]
[1762398374040,0.67,162.25,162.21,7.2]
[1762398374236,104.7,162.24,162.21,7.2]
[1762398374726,105.37,162.24,162.21,7.2]
[1762398374923,111.53380892,162.24,162.21,14.90251598]
[1762398375233,105.37,162.24,162.21,14.90251598]
[1762398375855,104.7,162.24,162.21,21.06718979]
[1762398376051,104.7,162.24,162.23,7.70251598]
[1762398376839,104.7,162.24,162.22,7.70251598]
[1762398377038,104.7,162.24,162.14,7.70251598]
[1762398377243,105.37,162.24,162.21,7.70251598]
[1762398378048,0.67,162.23,162.19,7.70251598]
[1762398378271,7.70251598,162.21,162.15,13.86964518]
[1762398378552,7.70251598,162.21,162.16,7.2]
[1762398378962,6.83522811,162.2,162.16,7.2]
[1762398379257,0.67,162.2,162.16,13.36669705]
[1762398380163,0.67,162.2,162.16,7.2]
[1762398380964,0.67,162.2,162.14,8.42251598]
[1762398380965,7.70251598,162.19,162.14,6.16715885]
[1762398381280,7.70251598,162.19,162.14,13.36715885]
[1762398381446,0.67,162.18,162.14,13.36715885]
[1762398382698,14.53862822,162.18,162.14,7.2]
[1762398383269,0.7,162.17,162.14,7.2]
[1762398383466,27.45750698,162.2,162.14,21.06995596]
[1762398383667,21.292,162.2,162.15,8.36251598]
[1762398384256,26.75733822,162.2,162.15,0.66]
[1762398384464,0.7,162.19,162.15,0.66]
[1762398384651,6.86569894,162.19,162.15,6.82699264]
[1762398384851,0.7,162.19,162.15,6.82699264]
[1762398385048,0.7,162.22,162.16,0.66]
[1762398385283,113.10251598,162.24,162.18,7.70251598]
[1762398385582,125.992,162.24,162.19,7.70251598]
[1762398385767,104.7,162.24,162.2,14.90251598]
[1762398386075,0.7,162.23,162.2,7.2]
[1762398386285,20.592,162.26,162.2,7.2]
[1762398386286,0.7,162.25,162.2,7.2]
[1762398386466,8.40251598,162.25,162.2,7.2]
[1762398386666,8.40251598,162.25,162.2,13.36488991]
[1762398386667,14.56591796,162.25,162.2,13.36488991]
[1762398386978,0.7,162.24,162.2,13.36488991]
[1762398387656,0.7,162.24,162.2,21.06740589]
[1762398387856,0.7,162.24,162.21,7.70251598]
[1762398388787,0.7,162.23,162.17,0.66]
[1762398388968,38.78334367,162.27,162.21,7.70251598]
[1762398389168,0.7,162.29,162.24,7.70251598]
[1762398389569,0.7,162.31,162.26,7.70251598]
[1762398389767,27.45373829,162.3,162.26,7.70251598]
[1762398389961,0.7,162.29,162.26,7.70251598]
[1762398390674,8.40251598,162.29,162.25,7.2]
[1762398390862,7.70251598,162.28,162.25,7.2]
[1762398391058,0.7,162.28,162.25,7.2]
[1762398391677,0.7,162.28,162.23,13.8665036]
[1762398391879,7.70251598,162.26,162.22,7.2]
[1762398392476,20.592,162.21,162.18,7.2]
[1762398392975,7.70251598,162.23,162.18,14.90251598]
[1762398392976,28.99451598,162.23,162.18,14.90251598]
[1762398393176,0.7,162.22,162.18,14.90251598]
[1762398393879,14.56723454,162.22,162.18,7.2]
[1762398394178,7.70251598,162.21,162.16,6.16673091]
[1762398394380,8.40251598,162.21,162.16,7.2]
[1762398394584,0.7,162.2,162.16,7.2]
[1762398394970,0.7,162.2,162.16,14.02662502]
[1762398395371,0.7,162.2,162.16,7.86]
[1762398395565,0.7,162.2,162.16,14.02673091]
[1762398396189,6.86528031,162.2,162.16,14.02673091]
[1762398396781,0.7,162.2,162.16,14.02673091]
[1762398397690,0.7,162.2,162.16,7.2]
[1762398397876,14.567772,162.2,162.16,7.2]
[1762398398372,0.7,162.19,162.16,7.2]
[1762398398787,140.70382186,162.22,162.17,0.67]
[1762398398788,0.7,162.21,162.17,0.67]
[1762398398977,0.7,162.2,162.16,7.2]
[1762398400196,6.86533682,162.2,162.16,13.36671982]
[1762398400502,6.16485084,162.21,162.16,14.03671982]
[1762398400673,6.86485084,162.21,162.16,14.03671982]
[1762398401001,6.16485084,162.21,162.16,14.03671982]
[1762398401173,0.7,162.2,162.16,14.03671982]
[1762398401368,6.16485084,162.21,162.17,0.67]
[1762398401701,6.86485084,162.21,162.17,0.67]
[1762398402406,6.86487026,162.21,162.17,6.83627412]
[1762398402698,6.86487026,162.21,162.17,0.67]
[1762398402892,6.86487026,162.21,162.16,13.36663675]
[1762398403084,6.86487026,162.21,162.16,14.03663675]
[1762398403488,6.86487026,162.21,162.16,13.36663675]
[1762398403674,6.86487026,162.21,162.17,0.67]
[1762398405095,8.40251598,162.2,162.16,7.2]
[1762398405479,0.7,162.19,162.16,7.2]
[1762398406110,20.592,162.17,162.14,0.67]
[1762398406287,20.592,162.17,162.15,7.2]
[1762398407101,0.7,162.19,162.15,13.36682907]
[1762398407285,20.592,162.18,162.15,14.03682907]
[1762398407490,20.592,162.18,162.15,7.87]
[1762398408210,21.292,162.18,162.15,7.2]
[1762398409203,27.45814872,162.18,162.15,7.2]
[1762398409395,0.7,162.17,162.15,7.2]
[1762398410209,0.7,162.17,162.13,0.2]
[1762398410378,8.40251598,162.17,162.13,0.2]
[1762398410585,20.592,162.18,162.13,14.74031917]
[1762398410799,21.292,162.18,162.13,14.74031917]
[1762398411178,13.86792648,162.2,162.15,6.1671292]
[1762398411399,13.86792648,162.2,162.16,7.70251598]
[1762398411400,104.7,162.2,162.16,7.70251598]
[1762398411599,104.7,162.2,162.17,8.37251598]
[1762398411978,104.7,162.2,162.18,0.69]
[1762398412393,104.7,162.2,162.18,7.89]
[1762398412704,104.7,162.2,162.18,7.2]
[1762398414799,104.7,162.2,162.18,13.36596089]
[1762398415000,105.38,162.2,162.18,7.2]
[1762398415191,104.7,162.2,162.18,7.2]
[1762398415702,110.86538794,162.2,162.18,7.2]
[1762398415888,105.38,162.2,162.18,7.2]
[1762398417501,104.7,162.2,162.18,7.2]
[1762398417902,104.7,162.2,162.18,7.89]
[1762398418589,104.7,162.2,162.18,14.055901]
[1762398419610,104.7,162.2,162.19,0.69]
[1762398419816,3.22274464,162.26,162.19,8.39251598]
[1762398420131,105.38,162.27,162.18,13.365901]
[1762398420132,104.7,162.27,162.24,7.70251598]
[1762398420310,110.86259663,162.27,162.24,7.18]
[1762398420626,104.7,162.27,162.24,21.04611064]
[1762398420806,104.7,162.27,162.25,8.39251598]
[1762398421007,104.7,162.27,162.26,7.70251598]
[1762398421618,104.7,162.27,162.25,8.39251598]
[1762398421945,104.7,162.27,162.25,0.69]
[1762398422092,104.7,162.27,162.26,7.70251598]
[1762398422516,104.7,162.27,162.26,14.55546433]
[1762398423123,104.7,162.27,162.26,7.70251598]
[1762398423305,104.7,162.27,162.25,7.70251598]
[1762398423504,104.7,162.27,162.24,7.18]
[1762398423804,104.7,162.27,162.24,14.88251598]
[1762398424008,6.84192879,162.29,162.24,14.88251598]
[1762398424319,6.84192879,162.29,162.25,0.69]
[1762398424698,125.58012471,162.31,162.25,0.69]
[1762398424699,104.7,162.31,162.26,5.47690345]
[1762398424902,104.7,162.31,162.28,5.47690345]
[1762398425329,104.7,162.31,162.28,6.16690345]
[1762398425516,104.7,162.31,162.29,6.16690345]
[1762398425702,104.7,162.31,162.3,7.18]
[1762398426355,104.7,162.31,162.3,13.34690345]
[1762398426634,25.18419685,162.39,162.32,6.16067028]
[1762398426635,0.68,162.39,162.32,6.16067028]
[1762398426929,0.68,162.39,162.34,5.47690345]
[1762398427223,20.592,162.4,162.36,5.47690345]
[1762398427424,20.592,162.4,162.37,7.18]
[1762398427631,21.272,162.4,162.37,7.18]
[1762398428520,6.22582356,162.43,162.37,7.18]
[1762398428833,20.592,162.4,162.37,7.18]
[1762398429132,20.592,162.4,162.37,13.3387142]
[1762398429331,0.68,162.42,162.37,13.3387142]
[1762398429832,0.68,162.42,162.38,0.69]
[1762398430028,0.68,162.42,162.37,18.81561765]
[1762398430334,6.83698714,162.42,162.37,7.18]
[1762398430514,12.31389059,162.42,162.37,7.18]
[1762398430714,20.66120139,162.43,162.38,0.69]
[1762398430925,20.66120139,162.43,162.38,12.3252369]
[1762398431134,20.66120139,162.43,162.4,5.47690345]
[1762398431135,0.06920139,162.43,162.4,5.47690345]
[1762398431368,0.06920139,162.43,162.4,12.65690345]
[1762398431524,0.06920139,162.43,162.41,6.16690345]
[1762398432130,0.06920139,162.43,162.41,0.69]
[1762398432309,0.06920139,162.43,162.42,0.69]
[1762398432637,0.06920139,162.43,162.42,6.16690345]
[1762398432818,0.06920139,162.43,162.42,12.32378068]
[1762398433011,0.06920139,162.43,162.42,6.16690345]
[1762398433211,0.06920139,162.43,162.42,0.69]
[1762398433611,0.06920139,162.43,162.42,6.16690345]
[1762398433830,0.06920139,162.43,162.42,12.32378068]
[1762398435340,1e-08,162.43,162.42,22.11260837]
[1762398435544,1e-08,162.43,162.42,22.41282388]
[1762398435747,6.63236707,162.54,162.45,20.592]
[1762398435947,6.15236706,162.54,162.48,5.47690345]
[1762398436444,5.47690345,162.49,162.42,11.63378068]
[1762398436760,6.92140852,162.54,162.41,6.15720772]
[1762398436761,5.47690345,162.46,162.41,6.15720772]
[1762398437246,6.15498245,162.47,162.41,6.15720772]
[1762398437444,5.47690345,162.46,162.41,6.15720772]
[1762398437647,5.47690345,162.45,162.4,7.2]
[1762398437830,6.15498245,162.47,162.37,6.15877317]
[1762398437831,5.47690345,162.43,162.37,6.15877317]
[1762398438030,5.47690345,162.43,162.37,13.35877317]
[1762398438250,5.47690345,162.4,162.34,5.47690345]
[1762398438448,5.47690345,162.4,162.34,7.2]
[1762398438631,5.47690345,162.4,162.34,12.67690345]
[1762398438946,20.592,162.43,162.38,5.47690345]
[1762398439758,11.63299339,162.45,162.39,5.47690345]
[1762398440327,32.22499339,162.45,162.4,6.15763546]
[1762398440529,20.592,162.45,162.4,11.63453891]
[1762398440829,20.592,162.45,162.41,5.47690345]
[1762398441041,11.63157937,162.48,162.42,5.47690345]
[1762398441260,11.63157937,162.48,162.41,12.67690345]
[1762398441483,11.63157937,162.48,162.41,7.2]
[1762398441484,5.47690345,162.47,162.41,7.2]
[1762398441755,21.54118502,162.48,162.41,7.2]
[1762398441756,5.47690345,162.46,162.41,7.2]
[1762398442057,22.22118502,162.48,162.41,7.2]
[1762398442058,0.68,162.48,162.41,12.67690345]
[1762398442241,12.31157049,162.48,162.41,12.67690345]
[1762398442445,5.47690345,162.47,162.41,18.83413842]
[1762398442758,6.83466704,162.48,162.41,18.83413842]
[1762398442935,5.47690345,162.47,162.41,18.83413842]
[1762398443327,5.47690345,162.47,162.41,13.35723497]
[1762398443528,5.47690345,162.46,162.41,7.2]
[1762398443757,5.47690345,162.46,162.39,5.47690345]
[1762398443758,5.47690345,162.44,162.39,6.15801465]
[1762398444066,5.47690345,162.45,162.38,18.83518058]
[1762398444360,5.47690345,162.43,162.38,13.35834547]
[1762398444659,110.85631796,162.44,162.38,18.83524892]
[1762398444960,110.85631796,162.44,162.39,5.47690345]
[1762398445542,104.7,162.44,162.4,5.47690345]
[1762398445937,104.7,162.44,162.39,5.47690345]
[1762398447233,104.7,162.44,162.4,6.15763546]
[1762398447456,104.7,162.44,162.4,11.63453891]
[1762398447656,104.7,162.44,162.41,5.47690345]
[1762398447856,104.7,162.44,162.4,6.15763546]
[1762398447857,104.7,162.44,162.4,5.47690345]
[1762398448061,110.86690345,162.44,162.38,18.83511168]
[1762398448238,116.33307437,162.44,162.38,18.83511168]
[1762398448644,5.47690345,162.42,162.36,11.63576419]
[1762398449140,5.47690345,162.37,162.29,6.1618091]
[1762398449333,5.47690345,162.37,162.31,5.47690345]
[1762398449763,11.63569866,162.37,162.29,13.3618091]
[1762398449940,11.63533313,162.38,162.32,5.47690345]
[1762398451153,5.47690345,162.38,162.33,6.16029076]
[1762398451461,20.592,162.4,162.35,5.47690345]
[1762398451862,20.592,162.4,162.35,6.15690345]
[1762398452356,104.7,162.41,162.37,5.47690345]
[1762398452555,104.7,162.41,162.36,5.47690345]
[1762398452862,105.39,162.41,162.35,5.47690345]
[1762398453042,105.39,162.41,162.33,13.36029076]
[1762398453043,6.16690345,162.4,162.33,13.36029076]
[1762398453248,11.6349181,162.39,162.34,6.15989532]